bitfinex-derivatives/quotes_SOLF0:USTF0_20251108
["timestamp","ask_amount","ask_price","bid_price","bid_amount"]
[1762586615277,0.0421752,160.26,160.22,8.6903]
[1762586615467,0.0421752,160.26,160.23,3.07]
[1762586616674,2.9621752,160.26,160.22,5.6203]
[1762586616971,2.9621752,160.26,160.22,8.6903]
[1762586617861,2.9621752,160.26,160.23,5.6197]
[1762586618975,2.9621752,160.26,160.23,8.6897]
[1762586622479,0.0421752,160.26,160.24,8.7994]
[1762586622679,0.0421752,160.26,160.25,3.18]
[1762586623779,5.8202908,160.34,160.27,5.6184]
[1762586623983,2.97,160.33,160.27,8.7984]
[1762586624186,2.97,160.33,160.27,3.18]
[1762586625083,3.01038184,160.32,160.28,3.22448944]
[1762586625281,3.00966627,160.32,160.29,3.18]
[1762586625481,3.00966627,160.32,160.28,5.66296943]
[1762586625682,3.00966627,160.32,160.28,8.84296943]
[1762586626284,0.03966627,160.32,160.29,8.7976]
[1762586626488,0.03966627,160.32,160.3,3.18]
[1762586628992,0.03966627,160.32,160.3,8.7974]
[1762586629294,0.03966627,160.32,160.3,3.18]
[1762586629896,0.03966627,160.32,160.3,8.7973]
[1762586630198,0.03966627,160.32,160.31,3.18]
[1762586631889,0.03966627,160.32,160.28,8.84326943]
[1762586632090,3.00966627,160.32,160.29,3.18]
[1762586632298,3.00966627,160.32,160.28,8.84326943]
[1762586633291,3.00966627,160.32,160.28,3.22506943]
[1762586635493,3.00966627,160.32,160.28,0.04506943]
[1762586636693,8.62666627,160.32,160.28,0.04506943]
[1762586636894,2.97,160.29,160.19,3.18]
[1762586637098,2.97,160.26,160.19,3.18]
[1762586637297,2.8502908,160.23,160.19,3.18]
[1762586637489,2.97,160.25,160.19,3.18]
[1762586637490,2.97,160.25,160.2,5.621]
[1762586637699,11.52733024,160.38,160.21,3.18]
[1762586637700,2.97,160.29,160.21,3.18]
[1762586637903,0.04257386,160.27,160.21,3.18]
[1762586638100,3.01257386,160.27,160.21,8.8004]
[1762586638299,1.82895385,160.26,160.21,8.8004]
[1762586638599,2.97,160.25,160.21,8.8004]
[1762586639697,4.79895385,160.22,160.18,4.90262032]
[1762586639895,4.84459054,160.22,160.18,4.90262032]
[1762586641193,1.87459054,160.22,160.19,2.97]
[1762586642602,0.04563669,160.22,160.19,2.97]
[1762586643707,0.04563669,160.22,160.19,8.5911]
[1762586644197,4.83459054,160.22,160.19,2.97]
[1762586644407,1.82895385,160.2,160.18,1.72262032]
[1762586644593,2.96,160.19,160.18,1.72262032]
[1762586644996,1.82895385,160.2,160.18,4.69262032]
[1762586645196,0.04563669,160.22,160.19,2.97]
[1762586645395,1.87459054,160.22,160.19,2.97]
[1762586645592,2.96,160.21,160.18,1.72262032]
[1762586645796,1.87459054,160.22,160.19,2.97]
[1762586646292,2.96,160.21,160.18,1.72262032]
[1762586647294,1.82895385,160.2,160.18,1.72262032]
[1762586647501,4.78895385,160.2,160.18,1.72262032]
[1762586647806,2.96,160.19,160.18,1.72262032]
[1762586648305,1.82895385,160.2,160.18,1.72262032]
[1762586648306,4.78895385,160.2,160.18,1.72262032]
[1762586650002,2.96,160.19,160.18,1.72262032]
[1762586650498,1.82895385,160.19,160.18,1.72262032]
[1762586651103,4.54092363,160.21,160.19,2.97]
[1762586651404,0.04563669,160.22,160.21,2.97]
[1762586652504,0.04563669,160.22,160.2,5.6208]
[1762586653211,0.04563669,160.22,160.19,2.97]
[1762586653511,4.59826138,160.21,160.18,7.34432032]
[1762586653809,0.04563669,160.22,160.18,10.31432032]
[1762586654007,4.59828606,160.21,160.18,10.31432032]
[1762586654208,0.04563669,160.22,160.18,10.31432032]
[1762586654209,4.59961303,160.2,160.18,10.31432032]
[1762586654407,2.96,160.2,160.18,1.72262032]
[1762586655213,4.60052162,160.19,160.18,1.72262032]
[1762586656014,1.82895385,160.21,160.18,1.72262032]
[1762586656208,4.59978055,160.2,160.18,1.72262032]
[1762586656414,1.82895385,160.21,160.18,1.72262032]
[1762586656714,4.60135201,160.2,160.18,1.72262032]
[1762586656915,0.04563669,160.22,160.18,4.69262032]
[1762586657113,2.96,160.21,160.18,4.69262032]
[1762586657312,2.96,160.2,160.18,1.72262032]
[1762586657511,1.82895385,160.21,160.18,1.72262032]
[1762586657714,4.60057916,160.2,160.18,1.72262032]
[1762586657916,4.78895385,160.21,160.18,1.72262032]
[1762586658117,0.04563669,160.22,160.19,2.97]
[1762586658417,4.60058291,160.21,160.19,2.97]
[1762586658612,0.04563669,160.22,160.19,2.97]
[1762586659210,0.04563669,160.22,160.21,2.97]
[1762586664022,0.04563669,160.22,160.18,1.72262032]
[1762586664023,1.82895385,160.27,160.23,2.97]
[1762586664419,4.78895385,160.27,160.23,2.97]
[1762586664724,1.82895385,160.25,160.22,2.97]
[1762586665022,1.87302463,160.25,160.22,3.01556086]
[1762586665815,0.04407078,160.25,160.23,2.97]
[1762586666513,0.04407078,160.25,160.23,8.5898]
[1762586666712,1.82895385,160.31,160.24,2.97]
[1762586667122,1.82895385,160.31,160.28,2.97]
[1762586667723,4.78895385,160.31,160.28,2.97]
[1762586667923,4.83400858,160.31,160.28,0.04713429]
[1762586670518,2.96,160.3,160.28,0.04713429]
[1762586670720,4.78895385,160.29,160.28,0.04713429]
[1762586671524,4.78895385,160.29,160.25,2.97]
[1762586671525,2.92,160.28,160.19,3.18]
[1762586671728,2.92,160.28,160.18,1.72262032]
[1762586671729,1.82895385,160.26,160.2,3.18]
[1762586672430,1.82895385,160.26,160.22,3.18]
[1762586672622,4.79507713,160.26,160.22,3.22286955]
[1762586674328,2.92,160.25,160.22,3.22286955]
[1762586674721,1.87507713,160.26,160.22,3.22286955]
[1762586674917,4.79507713,160.26,160.22,3.22286955]
[1762586675318,1.82895385,160.24,160.22,3.22286955]
[1762586675925,2.96612328,160.26,160.22,3.22286955]
[1762586676232,1.82895385,160.24,160.22,3.22286955]
[1762586677546,1.87507713,160.26,160.22,3.22286955]
[1762586678238,4.61757908,160.25,160.22,8.84306955]
[1762586678540,1.87507713,160.26,160.23,3.18]
[1762586678726,4.61790869,160.25,160.23,3.18]
[1762586678935,1.87507713,160.26,160.23,3.18]
[1762586679134,4.61790869,160.25,160.23,3.18]
[1762586679334,1.87507713,160.26,160.23,3.18]
[1762586679637,4.74895385,160.24,160.22,0.04286955]
[1762586680339,1.82895385,160.24,160.22,0.04286955]
[1762586680640,4.74895385,160.24,160.22,0.04286955]
[1762586683452,3.08,160.23,160.22,0.04286955]
[1762586683752,3.08,160.23,160.18,1.72262032]
[1762586683753,3.08,160.22,160.18,1.72262032]
[1762586683954,4.90895385,160.2,160.18,1.72262032]
[1762586684750,1.82895385,160.2,160.18,1.72262032]
[1762586684949,1.82895385,160.2,160.18,4.74262032]
[1762586685350,1.82895385,160.2,160.19,3.02]
[1762586685653,0.04040632,160.21,160.19,3.02]
[1762586686949,0.04040632,160.21,160.19,5.6212]
[1762586687154,0.04040632,160.21,160.19,8.6412]
[1762586687757,0.04040632,160.21,160.19,3.02]
[1762586688145,0.04040632,160.21,160.19,8.6412]
[1762586688349,0.04040632,160.21,160.2,3.02]
[1762586700771,0.04040632,160.21,160.18,4.74262032]
[1762586701063,3.12040632,160.21,160.18,1.72262032]
[1762586702771,0.04040632,160.21,160.19,2.99]
[1762586703362,0.04040632,160.21,160.18,4.71262032]
[1762586703666,3.12040632,160.21,160.18,4.71262032]
[1762586704168,3.12040632,160.21,160.18,1.72262032]
[1762586705268,4.62078138,160.2,160.18,1.72262032]
[1762586705469,3.12040632,160.21,160.18,1.72262032]
[1762586705666,4.62032996,160.2,160.18,1.72262032]
[1762586705870,3.12040632,160.21,160.18,1.72262032]
[1762586706279,4.61914963,160.2,160.18,1.72262032]
[1762586706570,3.12040632,160.21,160.18,1.72262032]
[1762586706773,3.08,160.19,160.18,1.72262032]
[1762586706967,7.69847429,160.19,160.18,1.57351769]
[1762586708176,3.08,160.18,160.07,2.99]
[1762586708465,3.08,160.12,160.03,2.99]
[1762586708670,7.69847429,160.11,160.04,2.99]
[1762586708970,0.04761203,160.09,160.04,2.99]
[1762586709268,0.04761203,160.09,160.07,2.99]
[1762586710661,0.04761203,160.09,160.05,8.6162]
[1762586710968,3.12761203,160.09,160.06,63.1]
[1762586711160,3.08,160.07,159.98,2.99]
[1762586711361,3.08,159.98,159.89,14.56784053]
[1762586711561,0.04408052,159.95,159.9,2.99]
[1762586712464,0.04408052,159.95,159.91,63.32]
[1762586712662,3.08,160.03,159.91,58.35506356]
[1762586712860,3.08,160.03,159.91,58.31]
[1762586713262,3.08,160.07,159.92,87.5903]
[1762586713468,3.08,160.07,160.0,5.6278]
[1762586713662,6.92554987,160.03,159.89,270.37059046]
[1762586713870,3.08,160.01,159.85,65.14399173]
[1762586714062,3.08,160.01,159.92,5.6308]
[1762586714270,3.08,159.96,159.85,1.74399173]
[1762586714470,3.08,159.92,159.85,1.74399173]
[1762586714674,3.12658883,159.9,159.85,1.74399173]
[1762586714868,3.08,159.88,159.85,1.74399173]
[1762586715070,3.08,159.87,159.85,1.74399173]
[1762586716469,3.12658883,159.9,159.85,4.73399173]
[1762586716774,0.04658883,159.9,159.86,2.99]
[1762586717673,3.12658883,159.9,159.85,1.74399173]
[1762586717878,3.12658883,159.9,159.85,4.73399173]
[1762586718068,3.12658883,159.9,159.85,1.74399173]
[1762586718267,3.12658883,159.9,159.85,4.73399173]
[1762586718566,3.12658883,159.9,159.85,1.74399173]
[1762586718974,3.12658883,159.9,159.85,4.73399173]
[1762586720170,3.12658883,159.9,159.85,1.74399173]
[1762586721278,3.12658883,159.9,159.85,4.73399173]
[1762586721479,0.04658883,159.9,159.86,2.99]
[1762586721678,0.04658883,159.9,159.85,1.74399173]
[1762586721679,3.12658883,159.9,159.85,1.74399173]
[1762586722071,3.12658883,159.9,159.85,4.73399173]
[1762586723380,0.04658883,159.9,159.86,2.99]
[1762586723770,3.12658883,159.9,159.85,1.74399173]
[1762586723967,3.12658883,159.9,159.85,4.73399173]
[1762586725285,3.12658883,159.9,159.86,2.99]
[1762586726177,3.12658883,159.9,159.85,1.74399173]
[1762586726376,3.12658883,159.9,159.85,4.73399173]
[1762586727078,3.12658883,159.9,159.85,10.36719173]
[1762586727280,0.04658883,159.9,159.86,2.99]
[1762586727468,3.12658883,159.9,159.85,1.74399173]
[1762586728879,3.12658883,159.9,159.85,4.73399173]
[1762586729281,3.12658883,159.9,159.85,1.74399173]
[1762586729482,18.69,159.67,159.44,87.8547]
[1762586729691,18.69,159.67,159.42,87.862]
[1762586729692,0.04094119,159.61,159.53,2.99]
[1762586729984,56.2,159.73,159.57,2.99]
[1762586729985,0.04038672,159.59,159.57,2.99]
[1762586730283,0.04569241,159.6,159.57,2.99]
[1762586730577,3.08,159.71,159.57,2.99]
[1762586731569,3.07015841,159.66,159.62,0.04230043]
[1762586731776,0.04672302,159.66,159.62,2.98046402]
[1762586732383,3.03,159.65,159.62,0.04046402]
[1762586733076,0.04672302,159.66,159.62,0.04046402]
[1762586733675,3.07672302,159.66,159.62,0.04046402]
[1762586734678,0.04672302,159.66,159.63,2.94]
[1762586743291,0.04672302,159.66,159.64,67.28]
[1762586743893,0.04672302,159.66,159.64,70.47]
[1762586744887,0.04672302,159.66,159.65,3.19]
[1762586745795,0.04672302,159.66,159.65,70.33]
[1762586746203,0.04672302,159.66,159.65,67.14]
[1762586746400,0.04672302,159.66,159.65,70.33]
[1762586747891,2.92,159.77,159.66,3.19]
[1762586748199,2.92,159.77,159.67,8.8294]
[1762586748500,2.92,159.76,159.67,8.8294]
[1762586748694,2.92,159.76,159.68,67.04]
[1762586748888,2.92,159.73,159.7,0.04035598]
[1762586750299,2.96593417,159.74,159.7,0.04035598]
[1762586753493,0.04593417,159.74,159.7,3.23035598]
[1762586753708,2.92,159.82,159.7,3.23035598]
[1762586753897,2.92,159.8,159.7,3.19]
[1762586754094,2.92,159.8,159.72,8.8276]
[1762586754297,4.64546482,159.79,159.72,8.8276]
[1762586754502,2.92,159.8,159.72,8.8276]
[1762586754703,0.04791417,159.77,159.74,0.04710277]
[1762586756501,0.04791417,159.77,159.74,3.23710277]
[1762586757900,4.51301125,159.82,159.74,3.23710277]
[1762586758105,7.44833935,159.83,159.72,66.76]
[1762586758312,5.6353,159.8,159.72,66.76]
[1762586758501,2.92,159.78,159.7,69.65]
[1762586758706,2.92,159.76,159.63,3.19]
[1762586758913,5.66074045,159.84,159.62,6.92554987]
[1762586758914,2.92,159.74,159.65,3.19]
[1762586759106,0.04786377,159.71,159.68,3.23636695]
[1762586760607,2.92,159.77,159.7,3.19]
[1762586761312,4.5248488,159.76,159.7,3.19]
[1762586761517,2.92,159.77,159.7,3.19]
[1762586761711,2.92,159.77,159.64,66.82]
[1762586761712,3.05775718,159.75,159.71,0.0466341]
[1762586761913,3.05053615,159.75,159.71,0.04017214]
[1762586762519,0.04053615,159.75,159.71,3.12017214]
[1762586762818,7.53690215,159.74,159.71,0.04017214]
[1762586763116,0.04053615,159.75,159.71,3.12017214]
[1762586763315,4.5272356,159.74,159.71,3.12017214]
[1762586763614,0.04053615,159.75,159.71,3.12017214]
[1762586764216,4.53260623,159.74,159.71,3.12017214]
[1762586764416,0.04053615,159.75,159.71,3.12017214]
[1762586765210,0.04053615,159.75,159.71,5.67827214]
[1762586765411,0.04053615,159.75,159.72,3.08]
[1762586766012,0.04053615,159.75,159.73,5.6373]
[1762586766219,4.53234524,159.79,159.74,3.08]
[1762586766417,3.01,159.82,159.74,3.08]
[1762586766618,4.53431553,159.81,159.76,3.08]
[1762586766818,4.53431553,159.8,159.76,3.08]
[1762586767019,3.01,159.82,159.76,3.08]
[1762586767223,3.01,159.8,159.77,0.04108693]
[1762586767527,0.04720444,159.81,159.77,0.04721617]
[1762586767825,7.54677336,159.8,159.77,0.04721617]
[1762586768025,3.01,159.8,159.77,0.04721617]
[1762586769230,0.04720444,159.81,159.77,3.12721617]
[1762586769532,3.05720444,159.81,159.77,3.12721617]
[1762586769725,0.04720444,159.81,159.77,3.12721617]
[1762586770424,0.04720444,159.81,159.79,3.08]
[1762586771027,7.58742151,159.91,159.8,3.08]
[1762586771224,72.58074045,159.94,159.74,71.18060081]
[1762586771225,3.01,159.89,159.82,3.08]
[1762586771432,3.01,159.92,159.83,3.08]
[1762586771632,3.01,159.9,159.83,3.08]
[1762586771937,4.546822,159.89,159.83,3.08]
[1762586772118,3.05711885,159.88,159.85,0.04713296]
[1762586772323,3.01,159.88,159.85,0.04726261]
[1762586772536,3.01,159.86,159.85,0.04726261]
[1762586772826,3.01,159.85,159.76,5.6363]
[1762586773030,7.55771508,159.84,159.76,5.6363]
[1762586773230,3.01,159.84,159.76,8.7163]
[1762586773932,0.04059497,159.82,159.78,3.12166412]
[1762586774726,3.05059497,159.82,159.78,3.12166412]
[1762586775524,0.04059497,159.82,159.78,3.12166412]
[1762586775736,3.05059497,159.82,159.78,3.12166412]
[1762586776438,3.05059497,159.82,159.78,0.04166412]
[1762586778838,3.01,159.79,159.78,0.04166412]
[1762586780244,3.01,159.81,159.78,0.04166412]
[1762586780442,0.04059497,159.82,159.78,3.12166412]
[1762586781733,0.04059497,159.82,159.78,8.75726412]
[1762586782030,0.04059497,159.82,159.79,3.08]
[1762586782639,3.05059497,159.82,159.78,0.04166412]
[1762586782837,3.05059497,159.82,159.78,3.12166412]
[1762586786143,0.04059497,159.82,159.78,3.12166412]
[1762586787444,3.05059497,159.82,159.78,3.12166412]
[1762586787837,3.05059497,159.82,159.78,0.04166412]
[1762586788343,3.05059497,159.82,159.78,3.12166412]
[1762586790840,0.04059497,159.82,159.78,3.12166412]
[1762586791244,0.04059497,159.82,159.78,5.67736412]
[1762586791446,0.04059497,159.82,159.79,3.18]
[1762586792649,0.04059497,159.82,159.79,8.8153]
[1762586792842,0.04059497,159.82,159.8,3.18]
[1762586794850,3.22059497,159.82,159.78,0.04166412]
[1762586795151,0.04059497,159.82,159.78,3.22166412]
[1762586795338,0.04059497,159.82,159.79,3.18]
[1762586795944,0.04059497,159.82,159.79,8.8153]
[1762586796145,0.04059497,159.82,159.8,3.18]
[1762586802544,0.04059497,159.82,159.8,8.8149]
[1762586802747,0.04059497,159.82,159.81,3.08]
[1762586811659,1.83854246,159.91,159.84,3.08]
[1762586811958,4.56020875,159.9,159.84,3.08]
[1762586812151,3.17,159.92,159.84,3.08]
[1762586812461,3.17,159.9,159.84,3.08]
[1762586812665,0.04065506,159.89,159.86,3.08]
[1762586812864,3.21065506,159.89,159.86,3.08]
[1762586814460,3.17,159.86,159.85,0.04235098]
[1762586817470,7.57063923,159.86,159.85,0.04235098]
[1762586819066,3.17,159.86,159.85,0.04235098]
[1762586819670,3.17,159.88,159.85,0.04235098]
[1762586820281,3.17,159.88,159.85,3.12235098]
[1762586820470,0.04065506,159.89,159.85,3.12235098]
[1762586820665,3.21065506,159.89,159.85,3.12235098]
[1762586822181,3.21065506,159.89,159.86,3.03]
[1762586822182,0.04065506,159.89,159.86,3.03]
[1762586822572,0.04065506,159.89,159.86,8.6628]
[1762586822775,0.04065506,159.89,159.87,3.03]
[1762586823373,3.09,159.95,159.85,0.04235098]
[1762586823374,3.09,159.95,159.88,3.03]
[1762586823771,3.09,159.95,159.91,3.03]
[1762586824367,3.13459654,159.95,159.91,3.07740654]
[1762586825577,0.04459654,159.95,159.91,3.07740654]
[1762586826583,0.04459654,159.95,159.93,3.03]
[1762586828488,0.04459654,159.95,159.94,3.03]
[1762586830487,3.09,159.99,159.94,3.03]
[1762586830891,3.09,159.99,159.92,3.03]
[1762586831189,3.09,159.98,159.92,3.03]
[1762586831385,3.09,159.98,159.93,0.04728625]
[1762586831685,3.09,159.96,159.93,3.07728625]
[1762586832889,3.09,159.96,159.93,0.04728625]
[1762586834891,3.09,159.95,159.93,0.04728625]
[1762586835287,3.09,159.95,159.86,3.03]
[1762586835586,3.09,159.92,159.86,3.03]
[1762586835782,3.09,159.95,159.86,3.03]
[1762586835993,3.09,159.95,159.91,3.03]
[1762586836187,3.13337499,159.95,159.91,3.07226943]
[1762586837194,3.13337499,159.95,159.92,3.03]
[1762586837894,0.04337499,159.95,159.93,3.03]
[1762586839389,0.04337499,159.95,159.91,0.04226943]
[1762586839390,3.13337499,159.95,159.91,3.07226943]
[1762586839794,0.04337499,159.95,159.91,3.07226943]
[1762586840990,0.04337499,159.95,159.92,5.6307]
[1762586841194,0.04337499,159.95,159.93,3.03]
[1762586841593,0.04337499,159.95,159.93,8.6604]
[1762586841794,0.04337499,159.95,159.94,3.03]
[1762586850096,5.9610831,160.02,159.96,5.6293]
[1762586850297,3.09,160.01,159.96,5.6293]
[1762586850496,3.09,160.01,159.96,8.6593]
[1762586851095,3.09708706,160.0,159.97,0.04574412]
[1762586857210,0.04708706,160.0,159.97,8.57464412]
[1762586858015,0.04708706,160.0,159.98,5.6285]
[1762586858309,0.04708706,160.0,159.99,2.9]
[1762586859610,0.04708706,160.0,159.97,2.94574412]
[1762586861099,0.04708706,160.0,159.98,2.9]
[1762586862905,0.04708706,160.0,159.98,8.5286]
[1762586863505,0.04708706,160.0,159.99,3.01]
[1762586865213,3.16708706,160.0,159.97,3.05574412]
[1762586865704,0.04708706,160.0,159.97,3.05574412]
[1762586867514,0.04708706,160.0,159.97,8.68474412]
[1762586867707,0.04708706,160.0,159.98,3.01]
[1762586869114,0.04708706,160.0,159.99,3.01]
[1762586880316,0.04708706,160.0,159.97,0.04574412]
[1762586880317,4.08,160.04,160.03,3.01]
[1762586885527,2.89,160.03,160.02,0.03990463]
[1762586888430,7.27800635,160.03,160.02,0.03990463]
[1762586890026,2.89,160.03,160.02,0.03990463]
[1762586890223,8.80311028,160.04,160.02,0.03990463]
[1762586894633,4.08,160.04,160.03,3.06]
[1762586900344,0.0399705,160.05,160.03,3.06]
[1762586900648,18.78,160.19,160.05,3.06]
[1762586900649,4.72311028,160.11,160.05,3.06]
[1762586900850,7.27630991,160.1,160.05,3.06]
[1762586901040,2.89,160.1,160.05,3.06]
[1762586901240,2.89,160.1,160.07,3.06]
[1762586901540,2.93414097,160.1,160.07,3.10794436]
[1762586901946,0.04414097,160.1,160.08,3.06]
[1762586902947,0.04414097,160.1,160.08,8.685]
[1762586903147,0.04414097,160.1,160.09,3.06]
[1762586917050,3.07414097,160.1,160.08,5.625]
[1762586917357,3.07414097,160.1,160.07,0.04794436]
[1762586917654,3.07414097,160.1,160.07,3.06794436]
[1762586918252,3.07414097,160.1,160.07,0.04794436]
[1762586918559,3.03,160.09,160.07,0.04794436]
[1762586920360,4.86311028,160.09,160.07,0.04794436]
[1762586920561,3.03,160.08,160.07,0.04794436]
[1762586927864,3.03,160.08,160.02,5.6272]
[1762586928161,3.16,160.05,160.02,5.6272]
[1762586928358,3.16,160.05,160.02,8.6772]
[1762586928956,3.20715206,160.05,160.02,8.71719391]
[1762586929756,3.20715206,160.05,160.03,3.05]
[1762586929962,0.04715206,160.05,160.03,3.05]
[1762586931067,3.20715206,160.05,160.03,3.05]
[1762586932469,3.20715206,160.05,160.03,8.6769]
[1762586934469,0.04715206,160.05,160.03,8.6769]
[1762586935263,3.16,160.03,160.02,0.00459278]
[1762586935473,7.52692343,160.03,160.02,0.00459278]
[1762586935673,3.16,160.03,160.02,0.00459278]
[1762586937976,4.99311028,160.03,160.02,0.00459278]
[1762586944475,3.16,160.03,160.02,0.00459278]
[1762586947482,3.12,160.04,160.02,0.00459278]
[1762586947680,0.04715206,160.05,160.02,3.07459278]
[1762586947888,0.04715206,160.05,160.04,3.07]
[1762586951284,5.98573847,160.12,160.06,3.07]
[1762586951989,3.12,160.12,160.08,3.07]
[1762586952191,3.16768619,160.12,160.08,3.11744445]
[1762586955587,3.16768619,160.12,160.08,0.04744445]
[1762586955789,3.12,160.11,160.08,0.04744445]
[1762586966308,3.12,160.09,160.08,0.04744445]
[1762586971914,2.93,160.11,160.08,3.13744445]
[1762586974912,8.3,160.11,160.08,3.13744445]
[1762586978328,2.93,160.1,160.08,3.13744445]
[1762586981827,5.37,160.11,160.09,3.09]
[1762586982622,8.42,160.11,160.09,3.09]
[1762586983227,5.37,160.11,160.09,3.09]
[1762586984430,3.05,160.1,160.08,0.04744445]
[1762586985127,3.05,160.1,160.08,3.02744445]
[1762586991036,3.05,160.1,160.08,8.65254445]
[1762586991630,5.37,160.11,160.09,2.98]
[1762586991835,8.42,160.11,160.09,2.98]
[1762586992440,3.05,160.1,160.08,8.65254445]
[1762586994536,8.42,160.11,160.09,2.98]
[1762586995837,5.37,160.11,160.1,2.98]
[1762586996433,3.05,160.16,160.12,2.98]
[1762586997033,3.05,160.16,160.14,2.98]
[1762586997234,5.91573847,160.18,160.14,2.98]
[1762586997536,4.36186,160.17,160.14,3.02438313]
[1762586997835,5.96051567,160.18,160.14,3.02438313]
[1762586998042,4.36188679,160.17,160.15,8.6026]
[1762586998340,3.0947772,160.18,160.15,8.6026]
[1762586998537,4.36063191,160.17,160.15,2.98]
[1762586998746,3.05,160.17,160.14,3.02438313]
[1762587000844,3.0947772,160.18,160.15,2.98]
[1762587001041,0.0447772,160.18,160.15,2.98]
[1762587001249,0.0447772,160.18,160.17,2.96]
[1762587004543,5.07743769,160.21,160.2,2.96]
[1762587005640,5.07743769,160.21,160.19,5.6627266]
[1762587005641,8.06743769,160.21,160.19,3.0016266]
[1762587005840,5.07743769,160.21,160.19,3.0016266]
[1762587007943,5.07743769,160.21,160.2,2.96]
[1762587011652,2.99,160.27,160.24,2.96]
[1762587012751,0.03741063,160.27,160.24,3.00240664]
[1762587013048,3.02741063,160.27,160.24,0.04240664]
[1762587015338,3.02741063,160.27,160.24,3.00240664]
[1762587015743,3.02741063,160.27,160.24,8.62180664]
[1762587015944,3.02741063,160.27,160.25,2.96]
[1762587016153,0.03741063,160.27,160.25,2.96]
[1762587017248,0.03741063,160.27,160.25,8.5791]
[1762587017554,0.03741063,160.27,160.26,2.96]
[1762587018143,4.63,160.31,160.26,2.96]
[1762587018347,4.63,160.31,160.27,2.96]
[1762587018553,4.63,160.31,160.3,2.96]
[1762587018746,4.81977033,160.37,160.3,2.96]
[1762587019152,2.99,160.36,160.32,3.00145656]
[1762587019352,2.99,160.36,160.32,3.00371023]
[1762587020051,2.99,160.36,160.32,8.62051023]
[1762587020450,2.99,160.36,160.33,2.96]
[1762587020647,2.99,160.36,160.32,0.04371023]
[1762587021249,2.99,160.36,160.32,3.00371023]
[1762587022144,2.99,160.36,160.32,8.62031023]
[1762587022349,2.99,160.36,160.33,2.96]
[1762587024761,4.81977033,160.36,160.32,0.04371023]
[1762587025059,2.99,160.33,160.32,0.04371023]
[1762587029662,2.99,160.32,160.26,5.6188]
[1762587029861,4.81977033,160.3,160.27,2.96]
[1762587030161,2.99,160.3,160.27,2.96]
[1762587030561,3.03371023,160.3,160.27,3.00782652]
[1762587031056,3.03371023,160.3,160.27,8.62622652]
[1762587031462,3.03371023,160.3,160.27,3.00782652]
[1762587032364,3.03371023,160.3,160.28,8.578]
[1762587033465,0.04371023,160.3,160.28,8.578]
[1762587034056,1.82977033,160.29,160.27,0.04782652]
[1762587034364,2.9,160.28,160.27,0.04782652]
[1762587034564,2.9,160.28,160.18,2.96]
[1762587034762,4.72977033,160.24,160.18,2.96]
[1762587035159,2.9,160.21,160.18,2.96]
[1762587035358,2.9,160.21,160.13,2.96]
[1762587035562,2.94200622,160.19,160.15,0.04514047]
[1762587036966,4.72977033,160.16,160.15,0.04514047]
[1762587039070,2.9,160.15,160.08,2.96]
[1762587039364,2.9,160.12,160.05,2.96]
[1762587040072,0.04662348,160.1,160.08,2.96]
[1762587040261,0.04662348,160.1,160.09,2.96]
[1762587040566,2.9,160.16,160.1,2.96]
[1762587041167,2.9,160.16,160.1,8.5844]
[1762587041465,1.82977033,160.15,159.97,201.20491735]
[1762587041770,2.9,160.12,160.07,8.5853]
[1762587041976,2.94203706,160.11,160.08,0.04070219]
[1762587043662,2.94203706,160.11,160.08,5.66570219]
[1762587043868,0.04203706,160.11,160.09,3.17]
[1762587045071,0.04203706,160.11,160.09,8.7946]
[1762587055292,2.91203706,160.11,160.08,0.04070219]
[1762587055790,2.91203706,160.11,160.08,8.83570219]
[1762587055984,0.04203706,160.11,160.09,3.17]
[1762587056592,2.91203706,160.11,160.09,3.17]
[1762587056989,2.91203706,160.11,160.08,5.66570219]
[1762587057190,2.91203706,160.11,160.08,8.83570219]